[Event "ITT 1st Parada Jamundi 2022"]
[Site "Jamundi Valle"]
[Date "2022.12.11"]
[Round "10.9"]
[White "Londono Lopez, Donaldo"]
[Black "Valdes Martinez, Miguel A."]
[Result "0-1"]
[ECO "B32"]
[WhiteElo "2055"]
[BlackElo "2104"]
[Annotator "TA"]
[PlyCount "97"]
[EventDate "2022.12.05"]
[EventType "swiss"]
[EventCountry "COL"]
[SourceTitle "playchess.com"]
[Source "ChessBase"]
[SourceQuality "1"]
[TimeControl "5400+30"]

{[%evp 14,97,36,41,35,33,35,21,29,2,13,0,0,-6,-9,-17,-6,-44,-49,-35,-36,-50,-35,-32,-49,-45,-48,-53,-49,-58,-53,-53,-44,-53,-47,-51,-45,-58,-47,-51,-51,-54,-54,-52,-50,-86,-81,-111,-103,-108,-105,-157,-98,-150,-160,-209,-83,-83,-83,-83,-83,-83,-83,-83,-83,-233,-233,-387,-314,-314,-276,-318,0,-179,-105,-727,-717,-473,-148,-151,-160,-160,-8,-39,-8,-415]} 1. e4 {[%emt 0:00:59]} c5 {[%emt 0:01:01]} 2. Nf3 {[%emt 0:00:24][%cal Bg1f3,Bf3d4,Bd4b5,Bb5a3,Ba3c4,Bc4e3,Be3d5][%mdl 32]} Nc6 {[%emt 0:00:18]} 3. d4 {[%emt 0:00:29]} cxd4 {[%emt 0:00:09]} 4. Nxd4 {[%emt 0:00:13]} e5 {[%emt 0:00:05]} 5. Nb5 {[%emt 0:00:18]} d6 {[%emt 0:00:07]} 6. N1c3 {[%emt 0:00:28]} a6 {[%emt 0:00:03]} 7. Na3 {[%emt 0:00:19]} Be7 {[%emt 0:00:05] 7...Be6 gains popularity.} 8. Nc4 {[%emt 0:01:06]} b5 {[%emt 0:00:04] B32: Sicilian: Löwenthal and Kalashnikov Variations.} 9. Ne3 {[%emt 0:00:29]} ({Much worse is} 9. Qd5 Bb7 10. Ne3 b4 $11) 9... Nf6 {[%emt 0:00:25]} 10. Ned5 {[%emt 0:00:17]} O-O {[%emt 0:00:10]} 11. Be3 {[%emt 0:01:46]} Rb8 {[%emt 0:05:53]} 12. Qd2 {[%emt 0:02:20]} Be6 {[%emt 0:01:41]} 13. Nxf6+ {[%emt 0:03:30]} Bxf6 {[%emt 0:00:18] [#]} 14. Be2 $146 {[%emt 0:01:29]} ({Predecessor:} 14. Bd3 h6 15. O-O Bg5 16. Rfd1 Bxe3 17. Qxe3 Qg5 18. Qxg5 hxg5 19. Rd2 Rfd8 {0-1 (50) Wahls,M (2520)-Ehlvest,J (2610) New York 1994}) 14... Nd4 {[%emt 0:10:35]} 15. O-O {[%emt 0:01:58]} Nxe2+ {[%emt 0:03:35]} 16. Nxe2 {[%emt 0:00:35]} d5 {[%emt 0:00:38]} 17. exd5 {[%emt 0:00:39]} Qxd5 {[%emt 0:00:06]} 18. Qxd5 {[%emt 0:02:23]} Bxd5 {[%emt 0:00:01]} 19. Rfd1 {[%emt 0:00:00]} Rfd8 {[%emt 0:02:10]} 20. Nc3 {[%emt 0:02:49]} Bc6 {[%emt 0:00:52]} 21. Ba7 {[%emt 0:00:51]} Rxd1+ {[%emt 0:01:42]} 22. Rxd1 {[%emt 0:00:02]} Rd8 {[%emt 0:00:02]} 23. Kf1 {[%emt 0:01:14]} Rxd1+ {[%emt 0:07:07]} 24. Nxd1 $15 {[%emt 0:00:01][%mdl 4096] Endgame KBB-KBN} Kf8 {[%emt 0:01:37]} 25. Ne3 {[%emt 0:01:33]} h5 {[%emt 0:01:06]} 26. Ke2 {[%emt 0:01:11]} Ke7 {[%emt 0:00:29]} 27. f3 {[%emt 0:00:56]} Ke6 {[%emt 0:02:06]} 28. b3 {[%emt 0:02:16]} Be7 {[%emt 0:01:20]} 29. Kd3 {[%emt 0:01:00]} f5 {[%emt 0:01:28][%cal Bf7f5,Bf5f4][%mdl 32]} 30. c4 {[%emt 0:03:02]} g5 {[%emt 0:01:04]} 31. cxb5 {[%emt 0:04:47]} axb5 {[%emt 0:00:33]} 32. Nc2 {[%emt 0:01:20]} (32. Ke2 $142) 32... h4 {[%emt 0:06:07]} (32... f4 $142 33. Bb6 g4) 33. Ke2 {[%emt 0:02:16]} ({White should try} 33. Ne1) 33... f4 $1 $17 {[%emt 0:07:46]} 34. h3 {[%emt 0:03:54]} (34. Bb6 $17) 34... Bd5 {[%emt 0:09:43]} (34... b4 $1 $19 {and Black stays clearly on top. aiming for ...Bb5+.} 35. Ne1 Bb5+ 36. Nd3 Kf5) 35. Bb6 {[%emt 0:07:31]} Kd7 {[%emt 0:06:45]} 36. Ne1 {[%emt 0:05:35]} Kc6 {[%emt 0:04:27]} 37. Bf2 {[%emt 0:02:43]} e4 {[%emt 0:01:17]} 38. fxe4 {[%emt 0:02:34]} Bxe4 {[%emt 0:00:21]} 39. a4 {[%emt 0:01:51] [#]} (39. Nf3 $17 {was called for.}) 39... b4 $1 $19 {[%emt 0:00:54] White must now prevent ...Bd5.} 40. Kd2 $2 {[%emt 0:06:21]} (40. Kf1 {is a better defense.}) 40... Bf6 {[%emt 0:07:58]} 41. Nf3 {[%emt 0:06:49]} Bd5 {[%emt 0:00:31]} 42. Kc2 {[%emt 0:02:16]} Be4+ $2 {[%emt 0:09:42]} (42... g4 $19 43. hxg4 h3) 43. Kd1 $2 {[%emt 0:05:39]} (43. Kd2 $1 $11 {and White stays safe.}) 43... Bd3 {[%emt 0:03:13] A strong pair of Bishops.} (43... Bd8 $19 {[%cal Og5g4] And now ...g4! would win.} 44. Kd2 Bf6) 44. Bd4 $2 {[%emt 0:02:48][%mdl 8192] Inhibits g4.} (44. Ke1 $17) 44... Bxd4 {[%emt 0:02:50]} 45. Nxd4+ {[%emt 0:00:02]} Kd5 $2 {[%emt 0:00:01]} (45... Kb6 $19 46. Nf3 Bf1) 46. Nf3 $17 {[%emt 0:00:30]} Bf1 {[%emt 0:00:11]} 47. Nxg5 {[%emt 0:00:23] [#]} Bxg2 $2 {[%emt 0:00:06]} ({Better is} 47... Kd4 $1 $17 {[%cal Rd4e3] ...Ke3! is the strong threat.} 48. Nf3+ Kc3) 48. Ke2 $11 {[%emt 0:00:39]} Ke5 {[%emt 0:02:39]} 49. Ke1 $2 {[%emt 0:22:25][%mdl 8192] Weighted Error Value: White=0.45/Black=0.29 (precise)} (49. a5 $11 {and White is okay.}) 0-1

[Event "ITT 1st Parada Jamundi 2022"]
[Site "Jamundi Valle"]
[Date "2022.12.11"]
[Round "10.10"]
[White "Malka, Samuel"]
[Black "Mogollon Tobar, Nicolle Julieth"]
[Result "1-0"]
[ECO "E18"]
[WhiteElo "2265"]
[BlackElo "1840"]
[Annotator "TA"]
[PlyCount "77"]
[EventDate "2022.12.05"]
[EventType "swiss"]
[EventCountry "COL"]
[SourceTitle "playchess.com"]
[Source "ChessBase"]
[SourceQuality "1"]
[TimeControl "5400+30"]

{[%evp 18,77,25,10,59,45,82,88,137,116,144,137,181,179,309,307,303,309,305,270,435,448,506,517,492,189,179,182,204,194,191,191,197,175,175,164,167,168,175,182,188,173,226,243,282,281,272,275,386,388,385,384,365,341,330,311,334,290,363,360,342,327]} 1. d4 {[%emt 0:02:17]} Nf6 {[%emt 1:31:00]} 2. Nf3 d5 {[%emt 0:00:00]} 3. c4 {[%emt 0:00:20]} e6 {[%emt 0:00:00]} 4. g3 {[%emt 0:00:13]} Be7 {[%emt 0:00:00]} 5. Bg2 {[%emt 0:00:13]} O-O {[%emt 0:00:00]} 6. O-O {[%emt 0:00:04]} b6 {[%emt 0:00:00]} 7. cxd5 {[%emt 0:00:16]} exd5 {[%emt 0:00:00]} 8. Nc3 {[%emt 0:00:09]} Bb7 {[%emt 0:00:00]} 9. Bf4 {[%emt 0:00:08]} Na6 {[%emt 0:00:00]} 10. Ne5 {[%emt 0:01:52] [#]} Bb4 $146 {[%emt 0:00:00] E18: Queen's Indian: Old Main Line (4 g3 Bb7 5 Bg2 Be7 6 0-0 0-0 7 Nc3).} (10... c5 $11 {feels stronger.}) ({Predecessor:} 10... c5 11. e3 Ne4 12. h4 cxd4 13. exd4 Nc7 14. Qb3 Ne6 15. Be3 Nxc3 16. bxc3 Nc7 17. a4 f6 18. Nd3 Ba6 {1-0 (64) Eljanov,P (2671)-Korpa,B (2536) Biel 2021}) 11. Rc1 $14 {[%emt 0:04:32]} (11. Qb3 {with more complications.} Re8 12. e4 Bxc3 13. bxc3 c5 14. exd5 Bxd5 15. Bxd5 Qxd5 16. Ng4) 11... Bxc3 {[%emt 0:00:00]} 12. bxc3 {[%emt 0:00:20]} c6 {[%emt 0:00:00]} (12... Ne4 $142) 13. c4 {[%emt 0:02:40] White has more active pieces.} Nh5 {[%emt 0:00:00]} 14. Bd2 {[%emt 0:03:17]} f6 {[%emt 0:00:00] Against e4} 15. cxd5 cxd5 {[%emt 0:00:00]} (15... fxe5 $142 16. dxc6 Bc8 17. Qb3+ (17. dxe5 Qc7 $16) (17. c7 Nxc7 18. dxe5 Be6 $16) 17... Kh8) 16. Nc6 $18 {[%emt 0:15:05]} Bxc6 {[%emt 0:00:00]} 17. Rxc6 {[%emt 0:00:10]} Qd7 {[%emt 0:00:00]} 18. Qb3 {[%emt 0:02:32]} Rfd8 $2 {[%emt 0:00:00] [#]} (18... Rad8 {was necessary.}) 19. Rc2 {[%emt 0:10:18]} g6 {[%emt 0:00:00]} 20. Rfc1 {[%emt 0:01:22]} Ng7 {[%emt 0:00:00]} 21. e3 $2 {[%emt 0:00:43]} (21. Qa3) 21... Ne6 {[%emt 0:00:00]} 22. h4 {[%emt 0:02:42]} Kh8 {[%emt 0:00:00]} 23. Bf1 {[%emt 0:01:05]} Nac7 {[%emt 0:00:00]} 24. a4 {[%emt 0:00:12]} Rab8 {[%emt 0:00:00]} 25. a5 {[%emt 0:00:44]} bxa5 {[%emt 0:00:00]} 26. Qa3 {[%emt 0:00:23]} a4 {[%emt 0:00:00]} 27. Ba5 {[%emt 0:01:31]} Rb7 {[%emt 0:00:00]} 28. Rc6 {[%emt 0:04:02] Hoping for Ba6.} Rdb8 {[%emt 0:00:00]} 29. Qxa4 {[%emt 0:08:59]} Nd8 {[%emt 0:00:00] [#]} (29... Ne8 $142 30. Ra1 f5) 30. R6c4 $3 {[%emt 0:01:03][%mdl 512]} Nce6 {[%emt 0:00:00]} (30... Qxa4 31. Rxa4) 31. Qxd7 {[%emt 0:00:47]} Rxd7 {[%emt 0:00:00]} 32. Rc8 {[%emt 0:02:22]} Rb2 {[%emt 0:00:00]} (32... Rxc8 {might work better.} 33. Rxc8 Kg7) 33. Bh3 {[%emt 0:04:53]} f5 {[%emt 0:00:00]} 34. g4 {[%emt 0:00:54]} Kg7 {[%emt 0:00:00]} 35. gxf5 {[%emt 0:01:46]} gxf5 {[%emt 0:00:00]} 36. Bxd8 {[%emt 0:08:08]} Nxd8 {[%emt 0:00:00]} 37. R1c7 {[%emt 0:01:41]} Rb7 {[%emt 0:00:00]} 38. Rxd7+ {[%emt 0:01:11]} Rxd7 {[%emt 0:00:00]} 39. Bxf5 {[%emt 0:00:18] Black did not feel at home in the position after the opening.   Weighted Error Value: White=0.17 (very precise) /Black=0.37} 1-0

[Event "ITT 1st Parada Jamundi 2022"]
[Site "Jamundi Valle"]
[Date "2022.12.11"]
[Round "10.11"]
[White "Gonzalez Velasco, Leandro"]
[Black "Herrera, Juan Sebastian"]
[Result "0-1"]
[ECO "B06"]
[WhiteElo "1915"]
[BlackElo "2297"]
[Annotator "TA"]
[PlyCount "82"]
[EventDate "2022.12.05"]
[EventType "swiss"]
[EventCountry "COL"]
[SourceTitle "playchess.com"]
[Source "ChessBase"]
[SourceQuality "1"]
[TimeControl "5400+30"]

{[%evp 9,82,31,57,45,54,34,57,50,61,58,68,42,53,49,56,58,45,51,66,57,120,120,117,128,111,68,64,54,26,0,-1,-4,-6,-19,-18,-13,-16,-23,-14,-52,-35,-45,-38,-55,-55,-50,48,38,72,72,121,134,416,59,298,-8,283,-8,-8,-316,-308,-283,-195,-711,-704,-998,-980,-988,-968,-958,-921,-1093,-1018,-1946,-1627]} 1. e4 {[%emt 0:03:41]} g6 {[%emt 0:02:32]} 2. d4 {[%emt 0:00:34]} Bg7 {[%emt 0:00:07]} 3. Nc3 {[%emt 0:00:37]} d6 {[%emt 0:00:06]} 4. Be3 {[%emt 0:00:12]} a6 {[%emt 0:00:05]} 5. a4 {[%emt 0:02:22]} Nd7 {[%emt 0:00:07]} 6. Bc4 {[%emt 0:00:22] B06: Modern Defence.} e6 {[%emt 0:00:17]} 7. Nf3 {[%emt 0:01:28]} h6 {[%emt 0:02:08]} 8. O-O {[%emt 0:01:05] White is slightly better.} Ngf6 {[%emt 0:00:47]} 9. h3 {[%emt 0:04:32]} d5 {[%emt 0:02:44]} 10. Bd3 {[%emt 0:04:57]} dxe4 {[%emt 0:03:29]} 11. Nxe4 {[%emt 0:00:11]} Nxe4 {[%emt 0:00:17]} 12. Bxe4 {[%emt 0:00:09]} Nf6 {[%emt 0:00:07]} 13. Bd3 {[%emt 0:00:12]} Nd5 {[%emt 0:00:11]} 14. Bd2 {[%emt 0:05:30] [#] Against c5} c5 $146 {[%emt 0:01:58]} (14... a5 $14) ({Predecessor:} 14... a5 15. Qe1 b6 16. Ne5 O-O 17. Qe4 Ba6 18. Bxa6 Rxa6 19. c4 Ne7 20. Rad1 Qa8 {1-0 (45) Ilincic,Z (2426)-Fernandez,D (2346) Kecskemet 2013}) 15. dxc5 $16 {[%emt 0:35:04]} Bxb2 {[%emt 0:01:12] [#]} 16. c4 $1 {[%emt 0:00:50]} Ne7 {[%emt 0:02:04]} 17. Qb1 {[%emt 0:07:48]} Bg7 {[%emt 0:02:33] [#]} 18. Rd1 $1 {[%emt 0:03:57][%cal Od2f4]} Qc7 {[%emt 0:00:57] Inhibits Bf4.} 19. Be3 {[%emt 0:01:17]} O-O {[%emt 0:00:39]} 20. Ra3 {[%emt 0:02:32]} f5 {[%emt 0:01:41]} 21. Qb6 {[%emt 0:00:44] Against Nc6} Qxb6 {[%emt 0:00:49]} 22. cxb6 {[%emt 0:00:06]} e5 {[%emt 0:05:26]} 23. Bc5 {[%emt 0:02:17] Against e4} Re8 {[%emt 0:00:02]} 24. Be2 {[%emt 0:03:05]} Be6 {[%emt 0:00:13]} 25. Bd6 {[%emt 0:01:42]} Nc6 {[%emt 0:00:18]} 26. Nd2 {[%emt 0:09:50][%cal Bf3d2,Bd2c4,Bc4a5][%mdl 32]} Nd4 {[%emt 0:05:50]} 27. Bf1 {[%emt 0:00:38]} Rac8 {[%emt 0:00:11]} (27... Bf8 $15 28. Bxf8 Kxf8) 28. c5 $14 {[%emt 0:00:29]} Red8 {[%emt 0:08:13]} 29. Nc4 {[%emt 0:06:21]} Kh7 {[%emt 0:01:19]} ({Black should try} 29... Nc6) 30. Na5 $1 $16 {[%emt 0:00:53]} Rd7 {[%emt 0:02:43][%mdl 8192] [#]} (30... Bd5 $16 {was called for.}) 31. Rb1 $2 {[%emt 0:01:09]} ({Only move:} 31. Nxb7 $1 $18 {[%mdl 512]} Rxb7 32. Bxa6) 31... e4 $2 {[%emt 0:01:31] [#]} (31... Bd5 $14) 32. Kh1 $2 {[%emt 0:01:13]} (32. Nxb7 $1 $18 {[%mdl 512]} Nc2 33. Rg3) 32... g5 $2 {[%emt 0:00:45][%mdl 8192] [#]} (32... Bd5 $11 {and Black is okay.}) 33. Rd1 $2 {[%emt 0:00:42]} (33. Nxb7 $1 $18 {[%mdl 512] aiming for Na5.} Nc2 34. Rab3 Bxb3 35. Rxb3) 33... Nc2 $36 {[%emt 0:00:08][%mdl 2048] Black has the initiative.} 34. Rg3 $2 {[%emt 0:00:15][%mdl 8192]} (34. c6 $11 {and White stays safe.} bxc6 35. Rg3) 34... Rxc5 $19 {[%emt 0:02:16]} ({Inferior is} 34... Be5 35. Be2 Bxg3 36. fxg3 $17) 35. Nxb7 {[%emt 0:00:18]} Rc6 {[%emt 0:00:08]} 36. Bxa6 {[%emt 0:00:40]} (36. Nc5 Rdxd6 37. Rxd6 Rxd6 38. Nxe6 (38. b7 $2 Rb6 $19)) 36... Rxb6 {[%emt 0:00:06] Black is clearly winning.} 37. Rc1 {[%emt 0:00:46]} Rxa6 {[%emt 0:01:35]} 38. Nc5 {[%emt 0:00:08]} Raxd6 {[%emt 0:00:06]} 39. Nxd7 {[%emt 0:00:32]} f4 {[%emt 0:00:19]} 40. Rc3 {[%emt 0:00:51]} Bxc3 {[%emt 0:00:53]} 41. Nf8+ {[%emt 0:00:02]} Kg7 {[%emt 0:00:53] What a bad dream for White.   Weighted Error Value: White=0.98/Black=0.43} 0-1

[Event "ITT 1st Parada Jamundi 2022"]
[Site "Jamundi Valle"]
[Date "2022.12.11"]
[Round "10.12"]
[White "Pazos Gambarrotti, Plinio"]
[Black "Mora Munoz, Alejandro"]
[Result "1/2-1/2"]
[ECO "E70"]
[WhiteElo "2083"]
[BlackElo "1959"]
[Annotator "TA"]
[PlyCount "70"]
[EventDate "2022.12.05"]
[EventType "swiss"]
[EventCountry "COL"]
[SourceTitle "playchess.com"]
[Source "ChessBase"]
[SourceQuality "1"]
[TimeControl "5400+30"]

{[%evp 17,70,28,34,19,29,25,19,21,20,25,18,10,18,17,14,0,47,47,43,16,18,0,0,0,0,-28,0,0,0,0,0,0,0,0,-2,-38,0,0,0,0,37,0,0,0,0,0,5,-14,0,-71,0,0,0,-49,0]} 1. d4 {[%emt 0:00:04]} Nf6 {[%emt 0:02:01]} 2. c4 {[%emt 0:00:03]} g6 {[%emt 0:00:13]} 3. Nc3 {[%emt 0:00:05]} Bg7 {[%emt 0:00:12]} 4. e4 {[%emt 0:00:06]} d6 {[%emt 0:00:07]} 5. Nge2 {[%emt 0:00:06]} O-O {[%emt 0:00:08]} 6. Ng3 {[%emt 0:00:04]} e5 {[%emt 0:00:15]} 7. d5 {[%emt 0:00:03]} a5 {[%emt 0:00:11]} 8. Be2 {[%emt 0:00:03]} Na6 {[%emt 0:00:20]} 9. h4 {[%emt 0:00:05]} h5 $1 {[%emt 0:00:06]} 10. Bg5 {[%emt 0:00:05][%cal Re2h5] E70: King's Indian: Miscellaneous lines with 4 e4, including 5 Nge2 and 5 Bd3 0-0 6 Nge2.} Qe8 {[%emt 0:00:15]} 11. Qd2 {[%emt 0:00:07]} Nc5 {[%emt 0:07:58]} 12. Bh6 {[%emt 0:00:08] The position is equal.} Bxh6 {[%emt 0:21:31]} 13. Qxh6 {[%emt 0:00:28][%cal Og3f5] [#]} Qe7 $146 {[%emt 0:00:08]} ({Predecessor:} 13... Ng4) 14. O-O-O {[%emt 0:04:38]} a4 {[%emt 0:07:13]} 15. Qg5 {[%emt 0:00:59][%cal Rg3h5]} Re8 {[%emt 0:01:47]} 16. Rhf1 {[%emt 0:04:20]} Nh7 {[%emt 0:01:09]} (16... Ng4 $11) 17. Qxe7 $14 {[%emt 0:01:05]} Rxe7 {[%emt 0:00:09]} 18. f3 {[%emt 0:01:23]} Bd7 {[%emt 0:03:37]} 19. Rd2 {[%emt 0:00:21]} Kg7 {[%emt 0:04:30]} 20. Kc2 $1 {[%emt 0:00:28]} Kh6 {[%emt 0:05:12]} 21. Rb1 {[%emt 0:01:47]} Na6 {[%emt 0:02:22]} 22. b4 {[%emt 0:02:30]} axb3+ {[%emt 0:00:09]} 23. axb3 {[%emt 0:00:15]} Nb4+ {[%emt 0:00:18]} 24. Kb2 {[%emt 0:00:04]} Ree8 {[%emt 0:04:38]} 25. Rdd1 {[%emt 0:01:51]} f5 {[%emt 0:07:25]} 26. Nf1 {[%emt 0:04:03]} Rf8 {[%emt 0:03:07]} 27. Ra1 {[%emt 0:00:41]} fxe4 {[%emt 0:01:42]} 28. Nxe4 {[%emt 0:00:31]} Bf5 {[%emt 0:09:29]} 29. Nfd2 {[%emt 0:01:08]} g5 {[%emt 0:01:18]} 30. Kc3 {[%emt 0:00:52]} Na2+ {[%emt 0:00:12]} 31. Kb2 {[%emt 0:00:17] [#] Strongly threatening hxg5+.} Nb4 {[%emt 0:00:01]} 32. Rh1 {[%emt 0:03:27]} gxh4 {[%emt 0:01:15] White must now prevent ...Rxa1.} 33. Kc3 {[%emt 0:04:17]} (33. Rxa8 $11 {remains equal.} Rxa8 34. Rxh4) 33... Na2+ {[%emt 0:00:14]} 34. Kb2 {[%emt 0:00:12]} Nb4 {[%emt 0:00:05] Threatens to win with ...Rxa1.} 35. Kc3 {[%emt 0:03:26] [#] And now Rxa8 would win.} Na2+ {[%emt 0:00:22] Weighted Error Value: White=0.13 (very precise) /Black=0.11 (very precise)} (35... Rxa1 $1 $15 {might be stronger.} 36. Rxa1 Na6) 1/2-1/2

[Event "ITT 1st Parada Jamundi 2022"]
[Site "Jamundi Valle"]
[Date "2022.12.11"]
[Round "10.13"]
[White "Lopez Rayo, Isabella"]
[Black "Lopez Rayo, Santiago"]
[Result "1/2-1/2"]
[ECO "B75"]
[WhiteElo "1898"]
[BlackElo "2300"]
[Annotator "TA"]
[PlyCount "56"]
[EventDate "2022.12.05"]
[EventType "swiss"]
[EventCountry "COL"]
[SourceTitle "playchess.com"]
[Source "ChessBase"]
[SourceQuality "1"]
[TimeControl "5400+30"]

{[%evp 14,56,48,65,60,49,62,18,29,15,17,24,31,-5,43,0,17,14,31,22,27,0,0,0,0,0,0,0,10,0,14,0,30,0,0,0,0,0,-8,-9,0,-10,-4,-21,0]} 1. e4 {[%emt 0:05:12]} c5 {[%emt 0:00:06]} 2. Nf3 {[%emt 0:00:04]} d6 {[%emt 0:00:06]} 3. d4 {[%emt 0:00:06]} cxd4 {[%emt 0:00:06]} 4. Nxd4 {[%emt 0:00:06]} Nf6 {[%emt 0:00:07]} 5. Nc3 {[%emt 0:00:04]} g6 {[%emt 0:00:09]} 6. Be3 {[%emt 0:00:06]} Bg7 {[%emt 0:00:04]} 7. f3 {[%emt 0:00:08]} a6 {[%emt 0:00:16]} 8. Qd2 {[%emt 0:00:18]} h5 {[%emt 0:00:15] B75: Sicilian Dragon: Yugoslav Attack, Miscellaneous.} 9. Be2 $1 {[%emt 0:06:04][%mdl 4] now scores much better than the old 9.0-0-0.} (9. Bc4 {seems wilder.} O-O 10. Bh6 Nc6 11. Nxc6 bxc6 12. O-O-O) 9... Nbd7 {[%emt 0:04:25]} 10. O-O-O {[%emt 0:04:49] White is more active.} b5 {[%emt 0:01:27]} 11. Nc6 {[%emt 0:10:34]} Qc7 {[%emt 0:00:33]} 12. Nb4 {[%emt 0:00:39]} Bb7 {[%emt 0:03:09] [#]} 13. Nbd5 $146 {[%emt 0:01:10]} ({Predecessor:} 13. Kb1 O-O 14. h3 Rfc8 15. g4 Qa5 16. Ncd5 Bxd5 17. exd5 Ne5 18. Bd4 Nc4 19. Bxc4 bxc4 {1-0 (62) Milov,L (2475)-Englert,J (2045) Bad Homburg 2019}) 13... Qd8 {[%emt 0:01:28]} (13... Bxd5 $11 {feels stronger.} 14. Nxd5 Nxd5 15. exd5 O-O) 14. Nxf6+ {[%emt 0:02:53]} Nxf6 {[%emt 0:01:37]} 15. Nd5 {[%emt 0:01:23]} Rc8 {[%emt 0:04:26]} 16. Nxf6+ {[%emt 0:24:22]} Bxf6 {[%emt 0:00:30]} 17. Bd4 {[%emt 0:00:07]} Bxd4 {[%emt 0:00:57]} 18. Qxd4 {[%emt 0:00:01]} O-O {[%emt 0:00:03]} 19. Bd3 {[%emt 0:03:29]} Qc7 {[%emt 0:01:15]} 20. Qe3 {[%emt 0:00:44]} Qc5 {[%emt 0:03:28]} 21. Qh6 {[%emt 0:00:31]} Qe5 {[%emt 0:02:31]} 22. f4 {[%emt 0:03:24]} Qf6 {[%emt 0:05:25]} (22... Qg7 {simplifies} 23. Qg5 Qf6 24. Qxf6 exf6 25. Rhe1 Rfe8) 23. g4 {[%emt 0:07:59]} (23. f5 {simplifies} gxf5 24. Qxf6 exf6 25. exf5 Kh7 26. Rd2) 23... Rc5 {[%emt 0:20:44] The position is equal.} 24. f5 {[%emt 0:02:33]} gxf5 {[%emt 0:07:07]} 25. Qxf6 {[%emt 0:02:52] Dancing on a razor blade.} exf6 {[%emt 0:02:13]} 26. gxf5 {[%emt 0:00:46]} Re8 {[%emt 0:00:10]} 27. Rhg1+ {[%emt 0:01:57]} Kf8 {[%emt 0:01:19]} 28. Rgf1 {[%emt 0:02:33]} Ke7 {[%emt 0:15:16] Weighted Error Value: White=0.12 (very precise) /Black=0.10 (very precise)} 1/2-1/2